[Event "*** Titled Tuesday Blitz"]
[Site "Chess.com"]
[Date "2020.03.03"]
[Round "2"]
[White "rogapa"]
[Black "karinachess1"]
[Result "1-0"]
[WhiteElo "2731"]
[BlackElo "2534"]
[TimeControl "180+1"]
[EndTime "13:18:25 PST"]
[Termination "rogapa won by resignation"]

1. e4 {[%clk 0:03:00.1]} 1... c5 {[%clk 0:02:56.8]} 2. Nf3 {[%clk 0:02:59.9]}
2... e6 {[%clk 0:02:55.9]} 3. d4 {[%clk 0:03:00.2]} 3... cxd4 {[%clk 0:02:55.9]}
4. Nxd4 {[%clk 0:03:01.1]} 4... a6 {[%clk 0:02:55.3]} 5. c4 {[%clk 0:02:59.8]}
5... Nf6 {[%clk 0:02:54.3]} 6. Nc3 {[%clk 0:02:59.5]} 6... Bb4 {[%clk
0:02:47.6]} 7. Qd3 {[%clk 0:02:54.4]} 7... Qc7 {[%clk 0:02:35.1]} 8. a3 {[%clk
0:02:47.5]} 8... Be7 {[%clk 0:02:34.4]} 9. Qg3 {[%clk 0:02:40.1]} 9... Qxg3
{[%clk 0:02:31.2]} 10. hxg3 {[%clk 0:02:41]} 10... d6 {[%clk 0:02:19.6]} 11. Be2
{[%clk 0:02:40.3]} 11... Nbd7 {[%clk 0:02:11]} 12. g4 {[%clk 0:02:33.9]} 12...
Ne5 {[%clk 0:01:47.4]} 13. g5 {[%clk 0:02:31.2]} 13... Nfd7 {[%clk 0:01:46.8]}
14. f4 {[%clk 0:02:30.6]} 14... Nc6 {[%clk 0:01:46.7]} 15. Be3 {[%clk
0:02:24.3]} 15... Nxd4 {[%clk 0:01:29.6]} 16. Bxd4 {[%clk 0:02:25.2]} 16... Kf8
{[%clk 0:01:17.2]} 17. O-O-O {[%clk 0:02:22]} 17... b6 {[%clk 0:01:07.9]} 18.
Be3 {[%clk 0:02:16.2]} 18... Rb8 {[%clk 0:00:55.9]} 19. b4 {[%clk 0:02:04.5]}
19... Bb7 {[%clk 0:00:44]} 20. Kb2 {[%clk 0:02:04]} 20... a5 {[%clk 0:00:37.3]}
21. Kb3 {[%clk 0:02:02.6]} 21... axb4 {[%clk 0:00:34.5]} 22. axb4 {[%clk
0:02:03.5]} 22... f6 {[%clk 0:00:30]} 23. Nb5 {[%clk 0:01:55.2]} 23... Bxe4
{[%clk 0:00:24.1]} 24. Nxd6 {[%clk 0:01:54.3]} 24... Bxg2 {[%clk 0:00:20.6]} 25.
Rhg1 {[%clk 0:01:49]} 25... Ba8 {[%clk 0:00:20.4]} 26. Nb5 {[%clk 0:01:40.8]}
26... Rd8 {[%clk 0:00:17.4]} 27. Nc7 {[%clk 0:01:36.6]} 27... Kf7 {[%clk
0:00:16.3]} 28. Nxa8 {[%clk 0:01:29.1]} 28... Rxa8 {[%clk 0:00:12.5]} 29. Rxd7
{[%clk 0:01:28.2]} 1-0

[Event "*** Titled Tuesday Blitz"]
[Site "Chess.com"]
[Date "2020.03.03"]
[Round "2"]
[White "szefru"]
[Black "moro182"]
[Result "0-1"]
[WhiteElo "2171"]
[BlackElo "2682"]
[TimeControl "180+1"]
[EndTime "13:18:37 PST"]
[Termination "moro182 won by resignation"]

1. Nf3 {[%clk 0:02:59.7]} 1... d5 {[%clk 0:02:59.6]} 2. g3 {[%clk 0:02:52.5]}
2... Nf6 {[%clk 0:02:59.2]} 3. Bg2 {[%clk 0:02:52.3]} 3... c5 {[%clk 0:02:59.7]}
4. b3 {[%clk 0:02:51.3]} 4... g6 {[%clk 0:02:59]} 5. Bb2 {[%clk 0:02:51.5]} 5...
Bg7 {[%clk 0:02:59.7]} 6. O-O {[%clk 0:02:50.8]} 6... O-O {[%clk 0:02:59.5]} 7.
d3 {[%clk 0:02:49.9]} 7... Nc6 {[%clk 0:02:59]} 8. Nbd2 {[%clk 0:02:49.7]} 8...
Re8 {[%clk 0:02:58.7]} 9. e4 {[%clk 0:02:48.9]} 9... e5 {[%clk 0:02:54.1]} 10.
h3 {[%clk 0:02:45.5]} 10... d4 {[%clk 0:02:42.8]} 11. a4 {[%clk 0:02:43.9]}
11... a6 {[%clk 0:02:39.6]} 12. Nh2 {[%clk 0:02:33.2]} 12... Bd7 {[%clk
0:02:35.9]} 13. f4 {[%clk 0:02:25.7]} 13... Nh5 {[%clk 0:02:35.5]} 14. Rf3
{[%clk 0:02:05.9]} 14... exf4 {[%clk 0:02:32.3]} 15. gxf4 {[%clk 0:02:05.3]}
15... Qh4 {[%clk 0:02:29.7]} 16. Qe1 {[%clk 0:01:57.3]} 16... Qxe1+ {[%clk
0:02:19.5]} 17. Rxe1 {[%clk 0:01:56.5]} 17... Nb4 {[%clk 0:02:09.9]} 18. Rc1
{[%clk 0:01:53.9]} 18... Bh6 {[%clk 0:02:09.6]} 19. Nc4 {[%clk 0:01:37.1]} 19...
Nxf4 {[%clk 0:01:52.3]} 20. Rcf1 {[%clk 0:01:33.6]} 20... Nxg2 {[%clk
0:01:48.7]} 21. Rxf7 {[%clk 0:01:28.7]} 21... Be6 {[%clk 0:01:41.9]} 22. Rxb7
{[%clk 0:01:22.5]} 22... Ne3 {[%clk 0:01:39]} 23. Rf6 {[%clk 0:01:13.1]} 23...
Nxc4 {[%clk 0:01:21.1]} 24. dxc4 {[%clk 0:01:06]} 24... Nxc2 {[%clk 0:01:18.6]}
25. Ba3 {[%clk 0:01:00.7]} 25... Nxa3 {[%clk 0:01:17.1]} 26. Nf3 {[%clk
0:00:55.9]} 26... d3 {[%clk 0:01:10.9]} 27. Kf2 {[%clk 0:00:52]} 27... Rad8
{[%clk 0:01:07.6]} 28. Ke1 {[%clk 0:00:51.1]} 28... d2+ {[%clk 0:01:07.6]} 29.
Kd1 {[%clk 0:00:51.4]} 29... Nb1 {[%clk 0:01:08]} 0-1

[Event "*** Titled Tuesday Blitz"]
[Site "Chess.com"]
[Date "2020.03.03"]
[Round "2"]
[White "enzovsky"]
[Black "yoolund"]
[Result "1-0"]
[WhiteElo "2333"]
[BlackElo "2562"]
[TimeControl "180+1"]
[EndTime "13:18:38 PST"]
[Termination "enzovsky won by resignation"]

1. e4 {[%clk 0:03:00.9]} 1... g6 {[%clk 0:02:54.3]} 2. d4 {[%clk 0:02:59.4]}
2... Bg7 {[%clk 0:02:53.4]} 3. Nc3 {[%clk 0:02:56.7]} 3... d6 {[%clk 0:02:53.5]}
4. f4 {[%clk 0:02:56]} 4... a6 {[%clk 0:02:53.6]} 5. Nf3 {[%clk 0:02:39.3]} 5...
b5 {[%clk 0:02:53.6]} 6. Bd3 {[%clk 0:02:35.9]} 6... Nd7 {[%clk 0:02:53.4]} 7.
e5 {[%clk 0:02:29.4]} 7... Nh6 {[%clk 0:02:52.4]} 8. a4 {[%clk 0:02:24.1]} 8...
b4 {[%clk 0:02:50.5]} 9. Ne4 {[%clk 0:02:24.5]} 9... O-O {[%clk 0:02:45.4]} 10.
O-O {[%clk 0:02:22.6]} 10... c5 {[%clk 0:02:43.9]} 11. f5 {[%clk 0:02:03.5]}
11... Nxf5 {[%clk 0:02:39.2]} 12. e6 {[%clk 0:01:54.9]} 12... fxe6 {[%clk
0:02:35]} 13. Neg5 {[%clk 0:01:54.9]} 13... Nf6 {[%clk 0:02:31.1]} 14. dxc5
{[%clk 0:01:48]} 14... Qc7 {[%clk 0:02:27.8]} 15. cxd6 {[%clk 0:01:46.5]} 15...
exd6 {[%clk 0:02:28.7]} 16. Bxf5 {[%clk 0:01:44.1]} 16... exf5 {[%clk 0:02:18]}
17. Bf4 {[%clk 0:01:43.6]} 17... Qc5+ {[%clk 0:02:01.5]} 18. Kh1 {[%clk
0:01:42]} 18... Nd5 {[%clk 0:01:59.8]} 19. Qd2 {[%clk 0:01:22.3]} 19... Nxf4
{[%clk 0:01:17.6]} 20. Qxf4 {[%clk 0:01:21.9]} 20... h6 {[%clk 0:01:11.8]} 21.
Nh3 {[%clk 0:00:57]} 21... Bb7 {[%clk 0:01:11.3]} 22. Rae1 {[%clk 0:00:50.4]}
22... Rae8 {[%clk 0:01:05.9]} 23. Rxe8 {[%clk 0:00:38.2]} 23... Rxe8 {[%clk
0:01:05.3]} 24. Nf2 {[%clk 0:00:37.2]} 24... Qe5 {[%clk 0:00:49.3]} 1-0

[Event "*** Titled Tuesday Blitz"]
[Site "Chess.com"]
[Date "2020.03.03"]
[Round "2"]
[White "Bad4life"]
[Black "boasovietica"]
[Result "1-0"]
[WhiteElo "2279"]
[BlackElo "2490"]
[TimeControl "180+1"]
[EndTime "13:18:38 PST"]
[Termination "Bad4life won by resignation"]

1. e4 {[%clk 0:03:00.5]} 1... c5 {[%clk 0:02:58.9]} 2. Nf3 {[%clk 0:03:00]} 2...
Nc6 {[%clk 0:02:59]} 3. Bb5 {[%clk 0:02:59.9]} 3... e6 {[%clk 0:02:59.1]} 4.
Bxc6 {[%clk 0:02:59.3]} 4... bxc6 {[%clk 0:02:59.8]} 5. b3 {[%clk 0:02:57.9]}
5... Ne7 {[%clk 0:02:58.4]} 6. O-O {[%clk 0:02:54.4]} 6... Ng6 {[%clk
0:02:57.8]} 7. Bb2 {[%clk 0:02:51.5]} 7... d6 {[%clk 0:02:56.9]} 8. Re1 {[%clk
0:02:50.2]} 8... e5 {[%clk 0:02:56.7]} 9. c3 {[%clk 0:02:48.7]} 9... Be7 {[%clk
0:02:56]} 10. d4 {[%clk 0:02:48.8]} 10... cxd4 {[%clk 0:02:41.6]} 11. cxd4
{[%clk 0:02:48.6]} 11... O-O {[%clk 0:02:33.7]} 12. h3 {[%clk 0:02:44.2]} 12...
Bf6 {[%clk 0:02:20.5]} 13. Nc3 {[%clk 0:02:39.2]} 13... Re8 {[%clk 0:02:19.7]}
14. Qd2 {[%clk 0:02:31.1]} 14... Bb7 {[%clk 0:01:59.8]} 15. Rad1 {[%clk
0:02:26.8]} 15... exd4 {[%clk 0:01:52.8]} 16. Nxd4 {[%clk 0:02:26.4]} 16... d5
{[%clk 0:01:44]} 17. exd5 {[%clk 0:02:19.5]} 17... cxd5 {[%clk 0:01:43.4]} 18.
Nce2 {[%clk 0:02:09.6]} 18... Qb6 {[%clk 0:01:36.3]} 19. Nf5 {[%clk 0:01:54.9]}
19... Bxb2 {[%clk 0:01:33.2]} 20. Qxb2 {[%clk 0:01:55.8]} 20... Re5 {[%clk
0:01:29.1]} 21. Neg3 {[%clk 0:01:45.5]} 21... Rae8 {[%clk 0:01:18]} 22. Kh2
{[%clk 0:01:39.4]} 22... Qf6 {[%clk 0:01:11.2]} 23. Ne3 {[%clk 0:01:15.2]} 23...
Nf4 {[%clk 0:01:06.8]} 24. Ng4 {[%clk 0:01:11.3]} 24... Rxe1 {[%clk 0:00:34.8]}
25. Nxf6+ {[%clk 0:01:11]} 25... gxf6 {[%clk 0:00:34.2]} 26. Rxe1 {[%clk
0:01:06.4]} 26... Rxe1 {[%clk 0:00:34.3]} 27. Qd2 {[%clk 0:00:53.6]} 1-0

[Event "*** Titled Tuesday Blitz"]
[Site "Chess.com"]
[Date "2020.03.03"]
[Round "2"]
[White "platy3"]
[Black "amiralfio"]
[Result "1-0"]
[WhiteElo "2856"]
[BlackElo "2607"]
[TimeControl "180+1"]
[EndTime "13:18:39 PST"]
[Termination "platy3 won by resignation"]

1. e4 {[%clk 0:03:00.6]} 1... c5 {[%clk 0:02:54.3]} 2. Nf3 {[%clk 0:03:00.5]}
2... d6 {[%clk 0:02:53.8]} 3. d4 {[%clk 0:03:00.8]} 3... Nf6 {[%clk 0:02:53.6]}
4. Nc3 {[%clk 0:02:59.6]} 4... cxd4 {[%clk 0:02:54.1]} 5. Nxd4 {[%clk
0:03:00.5]} 5... a6 {[%clk 0:02:54.7]} 6. Bd3 {[%clk 0:03:00.7]} 6... Bd7 {[%clk
0:02:52.1]} 7. O-O {[%clk 0:02:59.2]} 7... Nc6 {[%clk 0:02:52.6]} 8. Nxc6 {[%clk
0:02:57.2]} 8... Bxc6 {[%clk 0:02:53.5]} 9. a3 {[%clk 0:02:55]} 9... e6 {[%clk
0:02:53.3]} 10. f4 {[%clk 0:02:54]} 10... Be7 {[%clk 0:02:53.1]} 11. Qe2 {[%clk
0:02:54.2]} 11... O-O {[%clk 0:02:52]} 12. Bd2 {[%clk 0:02:54.3]} 12... Rc8
{[%clk 0:02:44.7]} 13. Kh1 {[%clk 0:02:52.2]} 13... e5 {[%clk 0:02:38.5]} 14.
Rad1 {[%clk 0:02:37.5]} 14... Qb6 {[%clk 0:02:36.3]} 15. b3 {[%clk 0:02:17.1]}
15... Rfe8 {[%clk 0:01:51.5]} 16. Qf3 {[%clk 0:02:06.5]} 16... Nd7 {[%clk
0:01:13.3]} 17. Qh3 {[%clk 0:02:03.5]} 17... g6 {[%clk 0:01:11.8]} 18. f5 {[%clk
0:01:57]} 18... Nc5 {[%clk 0:00:48.5]} 19. fxg6 {[%clk 0:01:48.4]} 19... fxg6
{[%clk 0:00:48.8]} 20. Bc4+ {[%clk 0:01:46]} 20... d5 {[%clk 0:00:30.1]} 21.
Nxd5 {[%clk 0:01:44.9]} 21... Bxd5 {[%clk 0:00:28.2]} 22. Bxd5+ {[%clk
0:01:45.8]} 22... Kh8 {[%clk 0:00:20.7]} 23. Rf7 {[%clk 0:01:45.6]} 23... h5
{[%clk 0:00:20.4]} 24. Qe3 {[%clk 0:01:45.5]} 24... g5 {[%clk 0:00:13.1]} 25.
Rdf1 {[%clk 0:01:31.6]} 25... Qg6 {[%clk 0:00:12.3]} 26. Qe2 {[%clk 0:01:27.7]}
26... g4 {[%clk 0:00:09.8]} 27. Bc3 {[%clk 0:01:21.6]} 27... Nd7 {[%clk
0:00:05.1]} 28. Bb2 {[%clk 0:01:19.7]} 28... Bg5 {[%clk 0:00:04.5]} 29. Rxd7
{[%clk 0:01:18]} 1-0

[Event "*** Titled Tuesday Blitz"]
[Site "Chess.com"]
[Date "2020.03.03"]
[Round "2"]
[White "VladimirBelous"]
[Black "goldenspine"]
[Result "1-0"]
[WhiteElo "2777"]
[BlackElo "2349"]
[TimeControl "180+1"]
[EndTime "13:18:39 PST"]
[Termination "VladimirBelous won by checkmate"]

1. c4 {[%clk 0:03:00.9]} 1... Nf6 {[%clk 0:02:59.8]} 2. Nf3 {[%clk 0:02:58.3]}
2... g6 {[%clk 0:02:59.8]} 3. Nc3 {[%clk 0:02:57.9]} 3... Bg7 {[%clk 0:03:00]}
4. e4 {[%clk 0:02:58.1]} 4... d6 {[%clk 0:02:56.2]} 5. d4 {[%clk 0:02:58.3]}
5... O-O {[%clk 0:02:56.1]} 6. h3 {[%clk 0:02:58.9]} 6... e5 {[%clk 0:02:55.3]}
7. d5 {[%clk 0:02:59.5]} 7... Bd7 {[%clk 0:02:54.8]} 8. Bg5 {[%clk 0:02:55.7]}
8... h6 {[%clk 0:02:49.6]} 9. Be3 {[%clk 0:02:54.8]} 9... Na6 {[%clk 0:02:43.6]}
10. Nd2 {[%clk 0:02:52.8]} 10... Nc5 {[%clk 0:02:40.1]} 11. b4 {[%clk
0:02:52.4]} 11... Na6 {[%clk 0:02:35.2]} 12. Rb1 {[%clk 0:02:52]} 12... Nh5
{[%clk 0:02:17.7]} 13. g3 {[%clk 0:02:37.7]} 13... f5 {[%clk 0:01:52.8]} 14.
exf5 {[%clk 0:02:35.5]} 14... Bxf5 {[%clk 0:01:52.6]} 15. Rb3 {[%clk 0:02:27.9]}
15... Bd7 {[%clk 0:01:09.8]} 16. Nde4 {[%clk 0:02:18.9]} 16... Qe7 {[%clk
0:01:08.6]} 17. c5 {[%clk 0:02:14.3]} 17... dxc5 {[%clk 0:00:52.8]} 18. bxc5
{[%clk 0:02:10.4]} 18... Nf6 {[%clk 0:00:33.6]} 19. Rxb7 {[%clk 0:02:03.9]}
19... Nxe4 {[%clk 0:00:28.3]} 20. Nxe4 {[%clk 0:02:03.2]} 20... Bf5 {[%clk
0:00:26.3]} 21. Nd6 {[%clk 0:01:45.2]} 21... e4 {[%clk 0:00:16.3]} 22. Nxf5
{[%clk 0:01:35.4]} 22... Rxf5 {[%clk 0:00:12.7]} 23. Bxa6 {[%clk 0:01:34.2]}
23... Bc3+ {[%clk 0:00:12.5]} 24. Kf1 {[%clk 0:01:33.7]} 24... Qf6 {[%clk
0:00:11.2]} 25. d6 {[%clk 0:01:29.1]} 25... Rf8 {[%clk 0:00:10.5]} 26. Qc2
{[%clk 0:01:12.1]} 26... Rxf2+ {[%clk 0:00:10.3]} 27. Qxf2 {[%clk 0:01:10.8]}
27... Qe5 {[%clk 0:00:06.4]} 28. Bc4+ {[%clk 0:01:07.9]} 28... Kg7 {[%clk
0:00:05.3]} 29. Rxc7+ {[%clk 0:01:07.2]} 29... Kh8 {[%clk 0:00:02]} 30. Qxf8#
{[%clk 0:01:07.5]} 1-0

[Event "*** Titled Tuesday Blitz"]
[Site "Chess.com"]
[Date "2020.03.03"]
[Round "2"]
[White "riconaipe"]
[Black "ChelsieMonica"]
[Result "0-1"]
[WhiteElo "2549"]
[BlackElo "2160"]
[TimeControl "180+1"]
[EndTime "13:18:41 PST"]
[Termination "ChelsieMonica won by resignation"]

1. e4 {[%clk 0:03:00.9]} 1... e6 {[%clk 0:02:57.8]} 2. b3 {[%clk 0:02:57]} 2...
d5 {[%clk 0:02:55.7]} 3. exd5 {[%clk 0:02:56.7]} 3... exd5 {[%clk 0:02:54.3]} 4.
Bb2 {[%clk 0:02:57.6]} 4... Nf6 {[%clk 0:02:54.8]} 5. Nf3 {[%clk 0:02:55.3]}
5... Be7 {[%clk 0:02:54.8]} 6. Be2 {[%clk 0:02:51.6]} 6... O-O {[%clk
0:02:54.9]} 7. O-O {[%clk 0:02:52.5]} 7... c5 {[%clk 0:02:54.9]} 8. d4 {[%clk
0:02:40.3]} 8... Nc6 {[%clk 0:02:53.6]} 9. Nc3 {[%clk 0:02:37.6]} 9... Bg4
{[%clk 0:02:52]} 10. Na4 {[%clk 0:02:36]} 10... Bxf3 {[%clk 0:02:50]} 11. Bxf3
{[%clk 0:02:35]} 11... cxd4 {[%clk 0:02:49.8]} 12. Bxd4 {[%clk 0:02:33.7]} 12...
Ne4 {[%clk 0:02:42.6]} 13. c4 {[%clk 0:02:32.7]} 13... Nxd4 {[%clk 0:02:32.9]}
14. Qxd4 {[%clk 0:02:32]} 14... Bf6 {[%clk 0:02:32.9]} 15. Qxd5 {[%clk
0:02:27.7]} 15... Qxd5 {[%clk 0:02:32.6]} 16. cxd5 {[%clk 0:02:28]} 16... Nd2
{[%clk 0:02:32.6]} 17. Rad1 {[%clk 0:02:14.1]} 17... Nxf1 {[%clk 0:02:31]} 18.
Kxf1 {[%clk 0:02:15]} 18... Rac8 {[%clk 0:02:25.6]} 19. d6 {[%clk 0:02:14.6]}
19... b5 {[%clk 0:02:24.7]} 20. d7 {[%clk 0:02:11.4]} 20... Rc7 {[%clk
0:01:56.9]} 21. Nb2 {[%clk 0:01:58.6]} 21... Rd8 {[%clk 0:01:55.5]} 22. Nd3
{[%clk 0:01:56.2]} 22... Rcxd7 {[%clk 0:01:54.5]} 23. Be4 {[%clk 0:01:56.1]}
23... Be7 {[%clk 0:01:51.4]} 24. g4 {[%clk 0:01:56.2]} 24... g6 {[%clk
0:01:51.4]} 25. f4 {[%clk 0:01:55.6]} 25... Rd4 {[%clk 0:01:50.4]} 26. Ne5
{[%clk 0:01:06.5]} 26... Rxd1+ {[%clk 0:01:49.7]} 27. Ke2 {[%clk 0:01:07.1]}
27... R8d2+ {[%clk 0:01:47.4]} 28. Kf3 {[%clk 0:00:59.7]} 28... Rf1+ {[%clk
0:01:41.1]} 29. Kg3 {[%clk 0:00:58.4]} 29... Bc5 {[%clk 0:01:34.4]} 30. Nd3
{[%clk 0:00:47.3]} 30... Be3 {[%clk 0:01:28.7]} 31. f5 {[%clk 0:00:43.6]} 31...
g5 {[%clk 0:01:27.3]} 32. a4 {[%clk 0:00:28.6]} 32... Bf4+ {[%clk 0:01:21.6]}
33. Nxf4 {[%clk 0:00:24.6]} 33... gxf4+ {[%clk 0:01:21.3]} 34. Kh4 {[%clk
0:00:24.8]} 34... f6 {[%clk 0:01:18.2]} 35. h3 {[%clk 0:00:23.1]} 35... f3
{[%clk 0:01:17.6]} 36. Kg3 {[%clk 0:00:22.9]} 36... Rg2+ {[%clk 0:01:16.6]} 37.
Kf4 {[%clk 0:00:22.1]} 37... Rgg1 {[%clk 0:01:15.7]} 0-1

[Event "*** Titled Tuesday Blitz"]
[Site "Chess.com"]
[Date "2020.03.03"]
[Round "2"]
[White "ZWISCHENZUGGED"]
[Black "johnathan113"]
[Result "0-1"]
[WhiteElo "2557"]
[BlackElo "2767"]
[TimeControl "180+1"]
[EndTime "13:19:06 PST"]
[Termination "johnathan113 won by resignation"]

1. d4 {[%clk 0:03:00.9]} 1... g6 {[%clk 0:03:00.2]} 2. e4 {[%clk 0:03:00.4]}
2... Nf6 {[%clk 0:03:01.1]} 3. e5 {[%clk 0:02:57.8]} 3... Nh5 {[%clk 0:03:00.5]}
4. Be2 {[%clk 0:02:57.2]} 4... d6 {[%clk 0:03:00.1]} 5. Bxh5 {[%clk 0:02:51.5]}
5... gxh5 {[%clk 0:03:01]} 6. exd6 {[%clk 0:02:30.1]} 6... Qxd6 {[%clk
0:03:01.9]} 7. Nc3 {[%clk 0:02:20.7]} 7... Rg8 {[%clk 0:03:00.8]} 8. Kf1 {[%clk
0:01:55.6]} 8... Bg4 {[%clk 0:02:50.8]} 9. f3 {[%clk 0:01:52.1]} 9... Bd7 {[%clk
0:02:47.4]} 10. Nge2 {[%clk 0:01:51.9]} 10... Na6 {[%clk 0:02:40.6]} 11. Bf4
{[%clk 0:01:50.8]} 11... Qg6 {[%clk 0:02:40.5]} 12. Rg1 {[%clk 0:01:45.2]} 12...
O-O-O {[%clk 0:02:38.5]} 13. a3 {[%clk 0:01:35.9]} 13... Bf5 {[%clk 0:02:38.5]}
14. Rc1 {[%clk 0:01:32]} 14... f6 {[%clk 0:02:38.4]} 15. Qe1 {[%clk 0:01:27.1]}
15... e5 {[%clk 0:02:20.8]} 16. dxe5 {[%clk 0:01:20]} 16... Bc5 {[%clk
0:02:20.9]} 17. Qg3 {[%clk 0:01:07.9]} 17... Qf7 {[%clk 0:02:11.2]} 18. Qh4
{[%clk 0:01:02.3]} 18... Bxg1 {[%clk 0:02:10.5]} 19. Kxg1 {[%clk 0:01:03.2]}
19... fxe5 {[%clk 0:02:06.9]} 20. Bxe5 {[%clk 0:00:59.9]} 20... Rde8 {[%clk
0:01:58.3]} 21. Qf4 {[%clk 0:00:48.5]} 21... Qe6 {[%clk 0:01:45.4]} 22. Nd4
{[%clk 0:00:45.8]} 22... Qxe5 {[%clk 0:01:41.4]} 23. Qxf5+ {[%clk 0:00:45.7]}
23... Qxf5 {[%clk 0:01:36.8]} 24. Nxf5 {[%clk 0:00:46.6]} 24... Nc5 {[%clk
0:01:35]} 25. Kf2 {[%clk 0:00:43.4]} 25... Rgf8 {[%clk 0:01:30.7]} 26. Nd4
{[%clk 0:00:33.1]} 26... Ne4+ {[%clk 0:01:27]} 27. Nxe4 {[%clk 0:00:30.5]} 27...
Rxe4 {[%clk 0:01:26.8]} 28. Rd1 {[%clk 0:00:25.6]} 28... h4 {[%clk 0:01:26]} 29.
h3 {[%clk 0:00:21.9]} 29... Re5 {[%clk 0:01:25.1]} 30. Ne2 {[%clk 0:00:15.4]}
30... Rd8 {[%clk 0:01:22.8]} 31. Rxd8+ {[%clk 0:00:09.7]} 31... Kxd8 {[%clk
0:01:23.7]} 32. Nd4 {[%clk 0:00:10.4]} 32... c5 {[%clk 0:01:20]} 33. Ne2 {[%clk
0:00:09.5]} 33... Kc7 {[%clk 0:01:19.3]} 34. Nf4 {[%clk 0:00:08.9]} 34... c4
{[%clk 0:01:16.5]} 35. b3 {[%clk 0:00:05.1]} 35... b5 {[%clk 0:01:16]} 36. a4
{[%clk 0:00:04.7]} 36... bxa4 {[%clk 0:01:14.3]} 37. bxa4 {[%clk 0:00:04.5]}
37... Kb6 {[%clk 0:01:13]} 0-1

[Event "*** Titled Tuesday Blitz"]
[Site "Chess.com"]
[Date "2020.03.03"]
[Round "2"]
[White "aquaticpineapples"]
[Black "ShahMatKanal"]
[Result "0-1"]
[WhiteElo "2254"]
[BlackElo "2495"]
[TimeControl "180+1"]
[EndTime "13:19:06 PST"]
[Termination "ShahMatKanal won by resignation"]

1. d4 {[%clk 0:03:00.9]} 1... e6 {[%clk 0:02:58.8]} 2. Nf3 {[%clk 0:03:00]} 2...
Nf6 {[%clk 0:02:56.5]} 3. Nbd2 {[%clk 0:02:59.5]} 3... d5 {[%clk 0:02:52.2]} 4.
e3 {[%clk 0:02:59.3]} 4... a6 {[%clk 0:02:49.8]} 5. Bd3 {[%clk 0:02:59]} 5... b5
{[%clk 0:02:50.1]} 6. O-O {[%clk 0:02:52.7]} 6... Bb7 {[%clk 0:02:50.3]} 7. b3
{[%clk 0:02:52.3]} 7... Nbd7 {[%clk 0:02:46]} 8. Bb2 {[%clk 0:02:52]} 8... c5
{[%clk 0:02:42.8]} 9. c4 {[%clk 0:02:51.7]} 9... dxc4 {[%clk 0:02:39.9]} 10.
bxc4 {[%clk 0:02:51.6]} 10... b4 {[%clk 0:02:40.3]} 11. Nb3 {[%clk 0:02:49.1]}
11... a5 {[%clk 0:02:35.9]} 12. dxc5 {[%clk 0:02:47.2]} 12... a4 {[%clk
0:02:31.3]} 13. c6 {[%clk 0:02:38.2]} 13... Bxc6 {[%clk 0:02:29.4]} 14. Nbd4
{[%clk 0:02:37.4]} 14... Bb7 {[%clk 0:02:24]} 15. Nb5 {[%clk 0:02:29.7]} 15...
Be7 {[%clk 0:02:15.1]} 16. Qc2 {[%clk 0:02:24.6]} 16... O-O {[%clk 0:02:08.9]}
17. Rfd1 {[%clk 0:02:10.9]} 17... Qb8 {[%clk 0:02:08.8]} 18. Bxh7+ {[%clk
0:02:01.6]} 18... Nxh7 {[%clk 0:02:03.8]} 19. Rxd7 {[%clk 0:02:00.6]} 19... Bf6
{[%clk 0:01:51.3]} 20. Bxf6 {[%clk 0:01:47.3]} 20... Nxf6 {[%clk 0:01:52.2]} 21.
Rd4 {[%clk 0:01:46.1]} 21... b3 {[%clk 0:01:48.6]} 22. Qb2 {[%clk 0:01:34.8]}
22... Bc6 {[%clk 0:01:30.1]} 23. axb3 {[%clk 0:01:21.4]} 23... axb3 {[%clk
0:01:30.1]} 24. Rxa8 {[%clk 0:01:19.4]} 24... Qxa8 {[%clk 0:01:31]} 25. Qxb3
{[%clk 0:01:02.6]} 25... Bxf3 {[%clk 0:01:30.7]} 26. gxf3 {[%clk 0:01:02.7]}
26... Qxf3 {[%clk 0:01:31.6]} 27. Rf4 {[%clk 0:00:59.5]} 27... Qh5 {[%clk
0:01:27.6]} 28. Qb4 {[%clk 0:00:34.4]} 28... Rd8 {[%clk 0:01:23.3]} 29. Nd6
{[%clk 0:00:26.3]} 29... Qd1+ {[%clk 0:01:22.9]} 30. Kg2 {[%clk 0:00:26.4]}
30... Rxd6 {[%clk 0:01:19.7]} 31. c5 {[%clk 0:00:26]} 31... Qd5+ {[%clk
0:01:14.9]} 32. f3 {[%clk 0:00:25.3]} 32... Qg5+ {[%clk 0:01:12.4]} 33. Kf2
{[%clk 0:00:24.6]} 33... Nd5 {[%clk 0:00:59.8]} 34. Qb8+ {[%clk 0:00:21.3]}
34... Rd8 {[%clk 0:00:59.8]} 35. h4 {[%clk 0:00:14.5]} 35... Rxb8 {[%clk
0:00:55.2]} 36. hxg5 {[%clk 0:00:14.9]} 36... Nxf4 {[%clk 0:00:55.5]} 0-1